bitfinex/quotes_BTCUSD_20241205
["timestamp","ask_amount","ask_price","bid_price","bid_amount"]
[1733380110276,0.0017336,101920.0,101910.0,0.44818692]
[1733380110485,0.0073903,101920.0,101910.0,0.44818692]
[1733380110695,0.0073903,101920.0,101910.0,0.39818692]
[1733380110909,0.0073903,101920.0,101910.0,0.41782597]
[1733380111125,0.00738572,101920.0,101910.0,0.41782597]
[1733380112546,0.00738572,101920.0,101910.0,0.3155661]
[1733380112730,0.00955647,101920.0,101910.0,0.23108598]
[1733380112937,0.05725647,101920.0,101910.0,0.23108598]
[1733380113330,0.05725602,101920.0,101910.0,0.23108598]
[1733380113538,0.03668527,101920.0,101910.0,0.34449927]
[1733380113754,0.03885618,101920.0,101910.0,0.21144693]
[1733380113977,0.03885618,101920.0,101900.0,10.1738667]
[1733380113978,0.1,101910.0,101900.0,10.1738667]
[1733380114201,0.37692227,101910.0,101900.0,10.1738667]
[1733380114410,0.47442705,101910.0,101900.0,10.1738667]
[1733380116493,0.52232705,101910.0,101900.0,10.1738667]
[1733380116710,0.52232705,101910.0,101900.0,10.17327304]
[1733380116945,0.2264,101910.0,101900.0,10.02327304]
[1733380117827,0.1264,101910.0,101900.0,10.35259538]
[1733380118051,0.0017334,101920.0,101910.0,0.196251]
[1733380118275,0.00390433,101920.0,101910.0,0.196251]
[1733380121672,0.0017334,101920.0,101910.0,0.32930334]
[1733380121892,0.00390433,101920.0,101910.0,0.32930334]
[1733380124985,0.0017334,101920.0,101910.0,0.32930334]
[1733380125230,0.0027334,101920.0,101910.0,0.56203173]
[1733380125463,1.5027334,101920.0,101910.0,0.42897939]
[1733380127077,1.5017334,101920.0,101910.0,0.42897939]
[1733380127303,1.5027334,101920.0,101910.0,0.13225076]
[1733380127533,1.5027334,101920.0,101910.0,0.32850176]
[1733380128187,1.5027334,101920.0,101910.0,0.0008667]
[1733380128422,0.0027334,101920.0,101910.0,0.0008667]
[1733380128641,0.00490433,101920.0,101900.0,10.02567761]
[1733380128878,1.5,101910.0,101900.0,10.02567761]
[1733380129113,1.5,101910.0,101900.0,10.15872995]
[1733380130423,1.5,101910.0,101900.0,10.15874495]
[1733380130647,1.501,101910.0,101900.0,10.15874495]
[1733380131067,1.501,101910.0,101900.0,9.96247495]
[1733380131485,1.501,101910.0,101900.0,10.15874495]
[1733380131701,1.501,101910.0,101900.0,9.96247495]
[1733380132137,0.001,101910.0,101900.0,10.15874495]
[1733380133210,1.50390434,101920.0,101900.0,10.35501495]
[1733380133417,0.001,101910.0,101900.0,10.35501495]
[1733380134048,0.001,101910.0,101900.0,10.15874495]
[1733380136856,0.001,101910.0,101900.0,9.96247495]
[1733380137172,0.57462694,101930.0,101900.0,9.96247495]
[1733380137373,0.19840403,101920.0,101900.0,9.96247495]
[1733380137753,0.00217103,101920.0,101900.0,9.96247495]
[1733380138168,1.5,101910.0,101900.0,9.96247495]
[1733380138491,1.5,101910.0,101900.0,9.82942261]
[1733380138665,0.57062705,101910.0,101900.0,9.79097838]
[1733380139436,0.67062705,101910.0,101900.0,9.79097838]
[1733380140914,0.471951,101910.0,101900.0,9.79097838]
[1733380141144,0.67062705,101910.0,101900.0,9.79097838]
[1733380141367,0.71954627,101910.0,101900.0,9.79097838]
[1733380141602,0.74295984,101910.0,101900.0,9.79097838]
[1733380141891,0.73489449,101910.0,101900.0,9.79097838]
[1733380142305,0.36392427,101910.0,101900.0,9.79097838]
[1733380142515,0.36017527,101910.0,101900.0,9.79097838]
[1733380144014,0.49222761,101910.0,101900.0,9.79097838]
[1733380144237,0.67272644,101910.0,101900.0,9.26479555]
[1733380144464,0.77164566,101910.0,101900.0,9.26479555]
[1733380144707,0.79333046,101910.0,101900.0,9.26479555]
[1733380144921,0.79433046,101910.0,101900.0,9.09744155]
[1733380145152,0.74643046,101910.0,101900.0,8.86686055]
[1733380145411,0.74643046,101910.0,101900.0,2.81124662]
[1733380145625,0.74643046,101910.0,101900.0,2.71311162]
[1733380145833,0.72374566,101910.0,101900.0,2.68453488]
[1733380146041,0.74425663,101910.0,101900.0,2.68453488]
[1733380146515,0.74425663,101910.0,101900.0,2.66490788]
[1733380146733,0.71981014,101910.0,101900.0,2.58639988]
[1733380146942,0.73794882,101910.0,101900.0,2.58639988]
[1733380147379,0.5263496,101910.0,101900.0,2.58639988]
[1733380147587,0.5263496,101910.0,101900.0,2.56677288]
[1733380147799,0.7216006,101910.0,101900.0,2.50789188]
[1733380148007,0.7226006,101910.0,101900.0,2.48826488]
[1733380148675,0.7226006,101910.0,101900.0,2.44901088]
[1733380149604,0.46808842,101910.0,101900.0,2.37050288]
[1733380150263,0.33503608,101910.0,101900.0,2.37050288]
[1733380150491,0.53503608,101910.0,101900.0,2.37050288]
[1733380150700,0.43503608,101910.0,101900.0,2.37050288]
[1733380150916,0.43403608,101910.0,101900.0,2.37050288]
[1733380151142,0.33403608,101910.0,101900.0,2.37050288]
[1733380151367,0.53403608,101910.0,101900.0,2.37050288]
[1733380151834,0.33403608,101910.0,101900.0,2.37050288]
[1733380152254,0.11478508,101910.0,101900.0,2.37050288]
[1733380152467,0.31320748,101910.0,101900.0,2.37050288]
[1733380152688,0.196251,101910.0,101900.0,2.44710288]
[1733380152911,0.00217132,101910.0,101900.0,2.47010288]
[1733380153169,0.0017342,101920.0,101900.0,2.84822522]
[1733380153400,0.20014714,101920.0,101900.0,2.51890288]
[1733380153632,0.39639214,101920.0,101900.0,2.51890288]
[1733380153858,0.196251,101910.0,101900.0,2.51890288]
[1733380154504,0.197251,101910.0,101900.0,2.51890288]
[1733380155158,0.19942227,101910.0,101900.0,2.51890288]
[1733380155593,0.19842227,101910.0,101900.0,2.51890288]
[1733380155815,0.00317127,101910.0,101900.0,2.51890288]
[1733380156047,0.19942227,101910.0,101900.0,2.51890288]
[1733380156495,0.00317127,101910.0,101900.0,2.51890288]
[1733380157430,0.31358756,101930.0,101900.0,2.51890288]
[1733380157655,0.50949261,101930.0,101900.0,2.51890288]
[1733380158107,0.001,101910.0,101900.0,2.71616708]
[1733380158316,0.001,101910.0,101900.0,2.94889547]
[1733380158534,0.001,101910.0,101900.0,2.94790027]
[1733380158721,0.00178994,101930.0,101910.0,0.0815]
[1733380158955,0.00178994,101930.0,101910.0,0.1045]
[1733380159160,0.00278994,101930.0,101910.0,0.1045]
[1733380159370,0.00178994,101930.0,101920.0,0.0497]
[1733380160525,0.00178994,101930.0,101920.0,0.1304]
[1733380161858,0.40642969,101940.0,101920.0,0.1304]
[1733380162106,0.70231474,101940.0,101920.0,0.13045894]
[1733380162309,0.49209405,101940.0,101920.0,0.13045894]
[1733380162518,0.702431,101940.0,101920.0,0.13045894]
[1733380162737,0.196213,101930.0,101920.0,0.13045894]
[1733380163364,0.196213,101930.0,101920.0,0.08075894]
[1733380164441,0.196213,101930.0,101900.0,2.86065831]
[1733380164649,0.39302515,101930.0,101900.0,2.66438931]
[1733380164851,0.58925315,101930.0,101900.0,2.33506797]
[1733380165055,1.5,101910.0,101900.0,2.33506797]
[1733380165268,0.58925715,101930.0,101900.0,2.33506797]
[1733380165269,0.196235,101920.0,101900.0,2.33506797]
[1733380165475,0.392477,101920.0,101900.0,2.23439702]
[1733380166790,0.392477,101920.0,101900.0,2.21139702]
[1733380167010,0.29592705,101910.0,101900.0,2.21139702]
[1733380167306,0.21892705,101910.0,101900.0,2.16189702]
[1733380167516,0.39592705,101910.0,101900.0,2.16189702]
[1733380168999,0.29592705,101910.0,101900.0,2.16189702]
[1733380169852,0.39592705,101910.0,101900.0,2.16189702]
[1733380170068,0.49592705,101910.0,101900.0,2.16189702]
[1733380170274,0.39592705,101910.0,101900.0,2.16189702]
[1733380171175,0.40985711,101910.0,101900.0,2.16189702]
[1733380172049,0.44290945,101910.0,101900.0,2.16189702]
[1733380172310,0.24665845,101910.0,101900.0,2.16189702]
[1733380172523,0.44290945,101910.0,101900.0,2.16189702]
[1733380173145,0.52090945,101910.0,101900.0,2.16189702]
[1733380173826,0.52090945,101910.0,101900.0,12.16189702]
[1733380173827,0.62090945,101910.0,101900.0,12.16189702]
[1733380174033,0.40985711,101910.0,101900.0,12.16189702]
[1733380174247,0.30985711,101910.0,101900.0,12.16189702]
[1733380174465,0.40985711,101910.0,101900.0,12.16189702]
[1733380175323,0.50985711,101910.0,101900.0,12.16189702]
[1733380175556,0.31018106,101910.0,101900.0,12.16189702]
[1733380175764,0.21018106,101910.0,101900.0,12.16189702]
[1733380176208,0.393344,101920.0,101900.0,12.16189702]
[1733380176426,0.493344,101920.0,101900.0,12.20879702]
[1733380176646,1.5,101910.0,101900.0,12.20879702]
[1733380176832,1.696251,101910.0,101900.0,12.20879702]
[1733380177289,0.196251,101910.0,101900.0,12.20879702]
[1733380177790,0.493344,101920.0,101900.0,12.20879702]
[1733380177997,0.689594,101920.0,101900.0,12.20879702]
[1733380178434,0.196251,101910.0,101900.0,12.20879702]
[1733380180374,0.70366888,101920.0,101900.0,12.20879702]
[1733380180530,0.196251,101910.0,101900.0,12.20879702]
[1733380182273,0.196251,101910.0,101900.0,12.16189702]
[1733380183070,0.196251,101910.0,101900.0,12.16229702]
[1733380183270,0.119251,101910.0,101900.0,12.16229702]
[1733380183469,0.1,101910.0,101900.0,12.16229702]
[1733380183668,0.296251,101910.0,101900.0,12.16229702]
[1733380185152,0.29600597,101910.0,101900.0,12.16229702]
[1733380185704,0.29687307,101910.0,101900.0,12.16229702]
[1733380186546,0.0008671,101910.0,101900.0,12.16229702]
[1733380186769,0.10062207,101910.0,101900.0,12.21019702]
[1733380186975,0.29687307,101910.0,101900.0,12.21019702]
[1733380187179,0.64047422,101920.0,101900.0,12.16229702]
[1733380187353,0.196251,101910.0,101900.0,12.16229702]
[1733380189773,0.42718432,101920.0,101910.0,0.0783]
[1733380189988,0.40742388,101920.0,101910.0,0.0783]
[1733380190207,0.01494488,101920.0,101910.0,0.0783]
[1733380190418,0.21117688,101920.0,101910.0,0.0783]
[1733380192897,0.58925115,101930.0,101910.0,0.0783]
[1733380193130,0.20180679,101920.0,101910.0,0.0783]
[1733380193363,0.49302615,101930.0,101910.0,0.0783]
[1733380193364,0.64302615,101930.0,101910.0,0.0783]
[1733380193562,0.196232,101920.0,101910.0,0.0783]
[1733380195410,0.55726682,101930.0,101910.0,0.0783]
[1733380195815,0.75349182,101930.0,101910.0,0.0783]
[1733380196023,0.55726682,101930.0,101910.0,0.0783]
[1733380196239,0.00557439,101920.0,101910.0,0.0783]
[1733380196440,0.55726682,101930.0,101910.0,0.0783]
[1733380196681,0.00557666,101920.0,101910.0,0.0783]
[1733380196890,0.55726682,101930.0,101910.0,0.0783]
[1733380197100,0.00557694,101920.0,101910.0,0.0783]
[1733380197309,0.36133177,101930.0,101910.0,0.0783]
[1733380197510,0.65755477,101930.0,101910.0,0.0783]
[1733380198157,0.46133077,101930.0,101910.0,0.0783]
[1733380198372,0.65755377,101930.0,101910.0,0.0783]
[1733380198566,0.36133077,101930.0,101910.0,0.0783]
[1733380199232,0.16510777,101930.0,101920.0,0.0499]
[1733380199451,0.16510777,101930.0,101920.0,0.1279]
[1733380199871,0.36132077,101930.0,101920.0,0.1279]
[1733380201298,0.46132077,101930.0,101920.0,0.1279]
[1733380201516,0.196232,101920.0,101910.0,0.0767]
[1733380201782,0.65754877,101930.0,101910.0,0.0767]
[1733380201995,0.65754677,101930.0,101910.0,0.0767]
[1733380202201,0.4933061,101930.0,101910.0,0.0767]
[1733380202419,0.48054577,101930.0,101910.0,0.0767]
[1733380202630,0.4479124,101950.0,101920.0,0.14717605]
[1733380202868,0.6441573,101950.0,101930.0,0.0782]
[1733380203074,0.196193,101940.0,101930.0,0.0782]
[1733380203283,0.196213,101930.0,101920.0,0.1254962]
[1733380203513,0.3924,101940.0,101920.0,0.1254962]
[1733380203726,0.97314101,101950.0,101920.0,0.1245]
[1733380203932,0.97314101,101950.0,101910.0,1.77199518]
[1733380203933,0.196194,101940.0,101910.0,1.77199518]
[1733380204173,0.196194,101940.0,101910.0,1.87265813]
[1733380204394,0.196194,101940.0,101910.0,2.06890613]
[1733380204807,0.196194,101940.0,101910.0,1.89565813]
[1733380205016,1.5,101930.0,101910.0,1.89565813]
[1733380205495,0.196213,101930.0,101910.0,1.89565813]
[1733380205717,0.668897,101940.0,101910.0,1.89565813]
[1733380205922,1.5,101920.0,101910.0,1.89565813]
[1733380206363,1.5,101920.0,101910.0,1.89467123]
[1733380207015,1.5,101920.0,101910.0,2.02067123]
[1733380207436,0.196213,101930.0,101910.0,1.92099518]
[1733380207642,0.19560694,101930.0,101910.0,1.92099518]
[1733380208033,0.568298,101940.0,101910.0,1.92099518]
[1733380208237,1.5,101930.0,101910.0,2.02067123]
[1733380208483,1.5,101930.0,101910.0,1.92099518]
[1733380208702,1.696222,101930.0,101910.0,1.92099518]
[1733380208916,1.892445,101930.0,101910.0,1.92272898]
[1733380209388,0.0055763,101920.0,101910.0,1.92272898]
[1733380209609,1.892445,101930.0,101910.0,1.92272898]
[1733380209833,0.005576,101920.0,101910.0,1.92272898]
[1733380210060,0.196232,101920.0,101910.0,1.92272898]
[1733380210288,1.992445,101930.0,101910.0,1.89972898]
[1733380210516,1.992446,101930.0,101910.0,1.89972898]
[1733380210948,2.188675,101930.0,101910.0,1.89972898]
[1733380211382,0.196232,101920.0,101910.0,1.89972898]
[1733380211603,0.196232,101920.0,101910.0,1.82282898]
[1733380212275,0.019232,101920.0,101910.0,1.82282898]
[1733380212495,1.992446,101930.0,101910.0,1.82282898]
[1733380212716,0.196232,101920.0,101910.0,1.82282898]
[1733380213169,0.65446039,101920.0,101910.0,1.77372898]
[1733380213377,0.65350698,101920.0,101910.0,1.77372898]
[1733380213597,0.55350698,101920.0,101910.0,1.77372898]
[1733380214473,0.5773011,101920.0,101910.0,1.77372898]
[1733380214691,0.57713579,101920.0,101910.0,1.77372898]
[1733380214905,0.67505501,101920.0,101910.0,1.77372898]
[1733380215329,0.57302057,101920.0,101910.0,1.77372898]
[1733380215536,0.49246823,101920.0,101910.0,1.77372898]
[1733380215780,0.67995403,101930.0,101910.0,1.77372898]
[1733380215986,0.196232,101920.0,101910.0,1.85682898]
[1733380216193,1.696232,101920.0,101910.0,1.85682898]
[1733380216399,2.02896039,101920.0,101910.0,1.77372898]
[1733380216620,0.39590805,101920.0,101910.0,1.77372898]
[1733380217334,0.19967605,101920.0,101910.0,1.77372898]
[1733380217572,0.39590805,101920.0,101910.0,1.77372898]
[1733380218455,0.39590805,101920.0,101910.0,1.77422898]
[1733380219152,0.52896039,101920.0,101910.0,1.77422898]
[1733380220030,0.39590805,101920.0,101910.0,1.77422898]
[1733380220683,0.61196039,101920.0,101910.0,1.77422898]
[1733380220909,0.47890805,101920.0,101910.0,1.77422898]
[1733380221120,0.47977505,101920.0,101910.0,1.77422898]
[1733380222420,0.28354305,101920.0,101910.0,1.77422898]
[1733380222629,0.47977505,101920.0,101910.0,1.77422898]
[1733380222838,0.61282739,101920.0,101910.0,1.77422898]
[1733380223055,0.47977505,101920.0,101910.0,1.77422898]
[1733380223294,0.197099,101920.0,101910.0,1.77422898]
[1733380223535,0.000867,101920.0,101910.0,1.90002898]
[1733380223739,0.000867,101920.0,101910.0,1.99970503]
[1733380224407,0.000867,101920.0,101910.0,2.19595603]
[1733380225123,1.500867,101920.0,101910.0,2.19595603]
[1733380227316,0.21364322,101940.0,101910.0,2.11775603]
[1733380227535,0.00556033,101930.0,101920.0,0.39640505]
[1733380227753,0.1979683,101950.0,101920.0,0.64072705]
[1733380227972,0.00556109,101940.0,101920.0,0.44449805]
[1733380228190,0.1979683,101950.0,101940.0,0.0492]
[1733380228191,0.0017933,101950.0,101940.0,0.0492]
[1733380228663,0.1979673,101950.0,101940.0,0.0492]
[1733380229561,0.21539708,101950.0,101940.0,0.0492]
[1733380230016,0.01922308,101950.0,101940.0,0.0492]
[1733380232979,0.31608885,101960.0,101940.0,0.0492]
[1733380233205,0.31608885,101960.0,101940.0,0.0492589]
[1733380233206,0.51225785,101960.0,101940.0,0.0492589]
[1733380233622,0.31108885,101960.0,101940.0,0.0492589]
[1733380233839,0.50725485,101960.0,101940.0,0.0492589]
[1733380234071,0.31108885,101960.0,101940.0,0.0492589]
[1733380234285,0.50725485,101960.0,101940.0,0.0492589]
[1733380235145,0.72114186,101960.0,101940.0,0.0492589]
[1733380235361,0.296174,101950.0,101940.0,5.89e-05]
[1733380236065,0.40842634,101950.0,101930.0,0.5]
[1733380236300,0.40842634,101950.0,101910.0,1.77422898]
[1733380236301,0.296232,101920.0,101910.0,1.77422898]
[1733380236533,0.196251,101910.0,101900.0,12.01137379]
[1733380236751,0.39592705,101910.0,101900.0,11.72578342]
[1733380237201,0.49592705,101910.0,101900.0,11.72578342]
[1733380237418,0.52897939,101910.0,101900.0,11.72578342]
[1733380237720,0.49592705,101910.0,101900.0,11.72578342]
[1733380237946,0.565479,101920.0,101900.0,11.72637257]
[1733380238177,0.19967605,101910.0,101900.0,11.72637257]
[1733380238389,0.29592705,101910.0,101900.0,11.72637257]
[1733380239037,0.39592705,101910.0,101900.0,11.72637257]
[1733380239251,0.29592705,101910.0,101900.0,11.72637257]
[1733380239477,0.39592705,101910.0,101900.0,11.72637257]
[1733380240147,0.29592705,101910.0,101900.0,11.72637257]
[1733380240593,0.39592705,101910.0,101900.0,11.72637257]
[1733380240833,0.67897939,101910.0,101900.0,11.72637257]
[1733380241050,0.71203173,101910.0,101900.0,11.72637257]
[1733380241269,0.73503173,101910.0,101900.0,5.44313813]
[1733380241492,0.73653173,101910.0,101900.0,5.36503813]
[1733380241716,0.83445095,101910.0,101900.0,5.32434562]
[1733380241944,0.83445095,101910.0,101900.0,5.26546462]
[1733380242171,0.83445095,101910.0,101900.0,5.22621062]
[1733380242634,0.86089806,101910.0,101900.0,5.01603916]
[1733380243081,0.86089806,101910.0,101900.0,4.97966916]
[1733380243315,0.86089806,101910.0,101900.0,3.47986916]
[1733380243762,0.86089806,101910.0,101900.0,3.42272156]
[1733380243970,0.86289806,101910.0,101900.0,3.38346756]
[1733380244220,0.86289806,101910.0,101900.0,2.98446757]
[1733380244427,0.88427305,101910.0,101900.0,2.98446757]
[1733380244638,0.90891865,101910.0,101900.0,2.81084606]
[1733380244868,0.90891865,101910.0,101900.0,2.39316759]
[1733380245111,0.90891865,101910.0,101900.0,2.2468448]
[1733380245560,0.90891865,101910.0,101900.0,2.1683368]
[1733380245787,0.90891865,101910.0,101900.0,2.12082304]
[1733380246009,0.90891865,101910.0,101900.0,2.1125037]
[1733380246219,0.91691865,101910.0,101900.0,1.9655037]
[1733380246435,0.91691865,101910.0,101900.0,1.9337481]
[1733380246666,0.92716876,101910.0,101900.0,1.8356131]
[1733380246896,0.92716876,101910.0,101900.0,1.81612816]
[1733380247572,0.92716876,101910.0,101900.0,1.75724716]
[1733380248009,0.92716876,101910.0,101900.0,1.65777776]
[1733380248216,0.92716876,101910.0,101900.0,1.49663809]
[1733380248441,0.92716876,101910.0,101900.0,1.42707345]
[1733380248669,0.92716876,101910.0,101900.0,1.18473635]
[1733380248884,0.92716876,101910.0,101900.0,1.04387109]
[1733380249086,0.92716876,101910.0,101900.0,1.0006954]
[1733380249295,1.05817704,101910.0,101900.0,1.0006954]
[1733380249501,1.05817704,101910.0,101900.0,0.9776284]
[1733380249706,1.05817704,101910.0,101900.0,0.64271101]
[1733380249933,1.05817704,101910.0,101900.0,0.54753222]
[1733380250131,1.15747704,101910.0,101900.0,0.11590203]
[1733380250351,1.15747704,101910.0,101900.0,0.07385765]
[1733380250557,0.392671,101870.0,101850.0,0.0008668]
[1733380250790,0.58857484,101860.0,101850.0,0.00104369]
[1733380251425,0.54212773,101860.0,101850.0,0.00104369]
[1733380251637,0.42907539,101860.0,101850.0,0.00104369]
[1733380251841,0.4341594,101860.0,101850.0,0.00104369]
[1733380252053,0.52907539,101860.0,101850.0,0.00104369]
[1733380252265,0.52907539,101860.0,101850.0,0.04824369]
[1733380252266,0.39602305,101860.0,101850.0,0.04824369]
[1733380252695,0.52907539,101860.0,101850.0,0.04824369]
[1733380252900,0.39602305,101860.0,101850.0,0.04824369]
[1733380253324,0.392671,101870.0,101850.0,0.12894369]
[1733380253533,0.688956,101880.0,101860.0,0.0807]
[1733380253739,0.59230905,101880.0,101860.0,0.0807]
[1733380253950,0.45720473,101890.0,101870.0,0.0464]
[1733380254197,0.45720473,101890.0,101880.0,0.1273]
[1733380254198,0.12305125,101890.0,101880.0,0.1273]
[1733380254381,0.196263,101910.0,101890.0,0.0809]
[1733380254590,0.49220205,101910.0,101890.0,0.0809]
[1733380254801,0.49220205,101910.0,101900.0,0.0496]
[1733380255011,0.59220205,101910.0,101900.0,0.0496]
[1733380255223,0.49220205,101910.0,101900.0,0.0496]
[1733380255456,0.59220205,101910.0,101900.0,0.0496]
[1733380255886,0.79197457,101910.0,101900.0,0.04977689]
[1733380256100,0.69197457,101910.0,101900.0,0.00017689]
[1733380256328,0.78989379,101910.0,101900.0,0.00017689]
[1733380256806,0.79076099,101910.0,101900.0,0.00017689]
[1733380257895,0.64999275,101910.0,101900.0,0.00017689]
[1733380258122,0.79076299,101910.0,101900.0,0.00017689]
[1733380258547,0.69284377,101910.0,101900.0,0.00017689]
[1733380259187,0.79284377,101910.0,101900.0,0.00017689]
[1733380260043,0.69284377,101910.0,101900.0,0.00017689]
[1733380260252,0.79284377,101910.0,101900.0,0.00017689]
[1733380262449,0.69284377,101910.0,101900.0,0.00017689]
[1733380262663,0.78372576,101910.0,101900.0,0.00017689]
[1733380263345,0.58395324,101910.0,101900.0,0.00017689]
[1733380263553,0.68395324,101910.0,101900.0,0.00017689]
[1733380263776,0.59307125,101910.0,101900.0,0.07837689]
[1733380264689,0.49307125,101910.0,101900.0,0.07837689]
[1733380264912,0.59307125,101910.0,101900.0,0.12417689]
[1733380266878,0.49307125,101910.0,101900.0,0.12417689]
[1733380268148,0.0008672,101910.0,101900.0,0.12417689]
[1733380268577,0.0008672,101910.0,101900.0,0.12591109]
[1733380269020,0.1971182,101910.0,101900.0,0.12591109]
[1733380269242,0.19572366,101910.0,101900.0,0.12591109]
[1733380269463,0.36422028,101910.0,101900.0,0.12591109]
[1733380270111,0.29539971,101910.0,101900.0,0.12591109]
[1733380270559,0.39539971,101910.0,101900.0,0.12591109]
[1733380270986,0.29539971,101910.0,101900.0,0.12591109]
[1733380271406,0.492482,101920.0,101900.0,0.12591109]
[1733380271634,0.49215805,101920.0,101900.0,0.12591109]
[1733380271890,0.49215805,101920.0,101910.0,0.0798]
[1733380271891,0.29591605,101920.0,101910.0,0.0798]
[1733380272531,0.09967605,101920.0,101910.0,0.0798]
[1733380272748,0.29591805,101920.0,101910.0,0.0798]
[1733380274951,0.196223,101930.0,101920.0,0.1248]
[1733380275609,0.2650859,101930.0,101920.0,0.1248]
[1733380276027,0.196223,101930.0,101920.0,0.1248]
[1733380277346,0.392406,101940.0,101920.0,0.1248]
[1733380277637,0.196224,101930.0,101920.0,0.1248]
[1733380278217,0.29587605,101940.0,101920.0,0.1248]
[1733380278395,0.49208505,101940.0,101920.0,0.1248]
[1733380278597,0.68829505,101940.0,101920.0,0.1248]
[1733380279015,0.196213,101930.0,101920.0,0.1248]
[1733380280841,0.196213,101930.0,101920.0,0.1265338]
[1733380281600,0.29675595,101930.0,101920.0,0.1265338]
[1733380282414,0.10054295,101930.0,101920.0,0.1265338]
[1733380282638,0.29675595,101930.0,101920.0,0.1265338]
[1733380283118,0.48546437,101930.0,101920.0,0.1265338]
[1733380283323,0.76856246,101930.0,101920.0,0.0017338]
[1733380283455,0.86856246,101930.0,101920.0,0.0017338]
[1733380283660,0.73546437,101930.0,101920.0,0.0017338]
[1733380286009,0.64675595,101930.0,101920.0,0.0817338]
[1733380286623,0.44675595,101930.0,101920.0,0.0817338]
[1733380287473,0.44675595,101930.0,101920.0,0.1313338]
[1733380288101,0.67985404,101930.0,101920.0,0.1313338]
[1733380288304,0.44675595,101930.0,101920.0,0.0017338]
[1733380288508,0.54675595,101930.0,101920.0,0.0017338]
[1733380288740,0.67985404,101930.0,101920.0,0.0017338]
[1733380290542,0.56237706,101930.0,101920.0,0.0017338]
[1733380290755,0.56237706,101930.0,101920.0,8e-07]
[1733380290960,0.66029628,101930.0,101920.0,8e-07]
[1733380292183,0.446251,101910.0,101900.0,9.9e-07]
[1733380292399,0.446251,101910.0,101870.0,0.0791]
[1733380292400,0.196309,101880.0,101870.0,0.0791]
[1733380292608,0.39598505,101880.0,101870.0,0.0791]
[1733380293525,0.43311734,101880.0,101870.0,0.0791]
[1733380294289,0.196328,101870.0,101860.0,0.0451]
[1733380294498,0.39600405,101870.0,101860.0,0.0451]
[1733380294698,0.39600405,101870.0,101850.0,0.2319668]
[1733380294699,0.41900405,101870.0,101850.0,0.03078728]
[1733380294849,0.32647045,101860.0,101850.0,0.03078728]
[1733380295050,0.5802373,101860.0,101850.0,0.03078728]
[1733380295276,0.196367,101850.0,101840.0,0.000867]
[1733380295511,0.29604305,101850.0,101840.0,0.00098285]
[1733380296453,0.39604305,101850.0,101840.0,0.00098285]
[1733380296669,0.4959296,101850.0,101840.0,0.00098285]
[1733380296872,0.69384882,101850.0,101840.0,0.00098285]
[1733380297199,0.21696227,101850.0,101840.0,0.00098285]
[1733380297400,0.19759527,101850.0,101840.0,0.00098285]
[1733380297603,0.39396227,101850.0,101840.0,0.00098285]
[1733380300189,0.29604305,101850.0,101840.0,0.00098285]
[1733380301878,0.31856651,101850.0,101840.0,0.00098285]
[1733380303068,0.41856651,101850.0,101840.0,0.00098285]
[1733380303275,0.32219951,101850.0,101840.0,0.00098285]
[1733380303531,0.41856651,101850.0,101840.0,0.00098285]
[1733380303841,0.61648573,101850.0,101840.0,0.00098285]
[1733380304097,0.71845306,101850.0,101840.0,0.00098285]
[1733380304452,0.61845306,101850.0,101840.0,0.00098285]
[1733380304629,0.41856651,101850.0,101840.0,0.00098285]
[1733380306198,0.61845306,101850.0,101840.0,8.5e-07]
[1733380306399,0.296386,101840.0,101830.0,9.5e-07]
[1733380306634,0.296386,101840.0,101820.0,3e-08]
[1733380306635,0.39629155,101830.0,101820.0,3e-08]
[1733380306839,0.4959676,101830.0,101820.0,8.8e-07]
[1733380307382,0.3189676,101830.0,101820.0,8.8e-07]
[1733380307609,0.40978316,101830.0,101820.0,8.8e-07]
[1733380308380,0.3219676,101830.0,101820.0,8.8e-07]
[1733380308736,0.3722676,101830.0,101820.0,8.8e-07]
[1733380308859,0.3722676,101830.0,101800.0,0.0822667]
[1733380308860,0.42307348,101820.0,101800.0,7e-07]
[1733380309069,0.196463,101800.0,101790.0,0.000867]
[1733380309277,0.32290098,101800.0,101790.0,0.000867]
[1733380309498,0.39613905,101800.0,101790.0,0.126267]
[1733380310139,0.29613905,101800.0,101790.0,0.126267]
[1733380311158,0.196463,101800.0,101790.0,0.126267]
[1733380312198,0.196463,101800.0,101790.0,0.12613506]
[1733380312413,0.492903,101810.0,101790.0,0.12613506]
[1733380312613,0.196463,101800.0,101790.0,0.12613506]
[1733380313643,0.29613905,101800.0,101790.0,0.12613506]
[1733380314188,0.39405827,101800.0,101790.0,0.12613506]
[1733380314421,0.29613905,101800.0,101790.0,0.12613506]
[1733380315077,0.4296177,101800.0,101790.0,0.12613506]
[1733380315278,0.5296177,101800.0,101790.0,0.12613506]
[1733380315482,0.196482,101790.0,101780.0,0.0008655]
[1733380315694,0.4296367,101790.0,101780.0,0.0008655]
[1733380316161,0.29615805,101790.0,101780.0,0.0008655]
[1733380316791,0.196482,101790.0,101780.0,0.00145599]
[1733380317327,0.589421,101800.0,101780.0,0.00145599]
[1733380317530,0.196482,101790.0,101780.0,0.00145599]
[1733380318272,0.1982242,101790.0,101750.0,0.20026841]
[1733380318476,0.1982542,101780.0,101770.0,0.0822]
[1733380318824,0.3947672,101780.0,101770.0,0.0822]
[1733380319041,0.393025,101780.0,101770.0,0.0822]
[1733380319450,0.34880283,101780.0,101770.0,0.0822]
[1733380322473,0.17180283,101780.0,101770.0,0.0822]
[1733380322690,0.37005803,101780.0,101770.0,0.0822]
[1733380322904,0.17180283,101780.0,101770.0,0.0822]
[1733380323130,0.17354503,101780.0,101770.0,0.0822]
[1733380323555,0.0017422,101780.0,101770.0,0.0822]
[1733380323775,0.0017422,101780.0,101770.0,0.22927605]
[1733380323988,0.1982442,101780.0,101770.0,0.06247825]
[1733380324220,0.196521,101770.0,101760.0,0.0009965]
[1733380324428,0.29619705,101770.0,101760.0,0.0009965]
[1733380324637,0.19654,101760.0,101750.0,0.00017711]
[1733380325292,0.29621605,101760.0,101750.0,0.00017711]
[1733380325736,0.19656,101750.0,101700.0,0.49691341]
[1733380325956,0.196599,101730.0,101720.0,0.0009867]
[1733380326170,0.196619,101720.0,101700.0,0.20026841]
[1733380326390,0.1983622,101720.0,101710.0,0.09967605]
[1733380327072,0.196599,101730.0,101710.0,0.38214446]
[1733380327287,0.0017422,101720.0,101710.0,0.18187605]
[1733380327498,0.196618,101720.0,101710.0,0.18187605]
[1733380327915,0.393224,101730.0,101710.0,0.18187605]
[1733380328276,0.196618,101720.0,101710.0,0.18187605]
[1733380328754,0.393222,101730.0,101710.0,0.22917605]
[1733380328965,0.589838,101730.0,101710.0,0.22917605]
[1733380329181,0.196618,101720.0,101710.0,0.25117505]
[1733380329479,0.196618,101720.0,101710.0,0.1295]